{"text_format":"3","workbook":"xlsx","n_sheets":2,"sheets":["Лист1","support"],"not_rendered":{"macros":1,"defined_names":2,"comments":1},"read":"whole","date_system":"1900"}

{"sheet":"Лист1","index":0,"n_rows":93,"n_cols":35,"rows_kept":93,"merged":[[1,0,1,30],[3,11,3,15],[3,16,3,20],[4,11,4,15],[4,16,4,20],[6,0,6,30],[8,1,8,27],[8,28,8,30],[10,1,10,12],[10,13,10,19],[10,20,10,25],[10,26,10,30],[11,1,11,12],[11,13,11,19],[11,20,11,25],[11,26,11,30],[12,1,12,12],[12,13,12,19],[12,20,12,25],[12,26,12,30],[13,1,13,12],[13,13,13,19],[13,20,13,25],[13,26,13,30],[15,1,15,14],[15,20,15,30],[17,1,17,24],[19,1,19,27],[19,28,19,30],[20,1,20,27],[20,28,20,30],[21,1,21,27],[21,28,21,30],[22,1,22,27],[22,28,22,30],[24,0,24,30],[26,1,27,15],[26,16,27,20],[26,21,26,30],[27,21,27,24],[27,25,27,26],[27,27,27,30],[28,1,28,15],[28,16,28,20],[28,21,31,30],[29,1,29,15],[29,16,29,20],[30,1,30,15],[30,16,30,20],[31,1,31,15],[31,16,31,20],[32,1,32,15],[32,16,32,20],[32,21,35,30],[33,1,33,15],[33,16,33,20],[34,1,34,15],[34,16,34,20],[35,1,35,15],[35,16,35,20],[36,1,36,15],[36,16,36,20],[36,21,37,30],[37,1,37,15],[37,16,37,20],[38,1,38,15],[38,16,38,20],[38,21,39,30],[39,1,39,15],[39,16,39,20],[40,1,40,15],[40,16,40,20],[40,21,40,30],[41,1,41,15],[41,16,46,20],[41,21,41,24],[41,25,41,26],[41,27,41,30],[42,1,42,15],[42,21,42,24],[42,25,42,26],[42,27,42,30],[43,1,43,15],[43,21,43,24],[43,25,43,26],[43,27,43,30],[44,1,44,15],[44,21,44,24],[44,25,44,26],[44,27,44,30],[45,1,45,15],[45,21,45,24],[45,25,45,26],[45,27,45,30],[46,1,46,15],[46,21,46,24],[46,25,46,26],[46,27,46,30],[48,0,48,30],[50,1,50,7],[50,8,50,9],[50,10,50,11],[50,12,50,13],[50,14,50,15],[50,16,50,17],[50,18,50,19],[50,20,50,21],[50,22,50,23],[50,24,50,25],[50,26,50,27],[50,28,50,29],[51,1,51,7],[51,8,51,9],[51,10,51,11],[51,12,51,13],[51,14,51,15],[51,16,51,17],[51,18,51,19],[51,20,51,21],[51,22,51,23],[51,24,51,25],[51,26,51,27],[51,28,51,29],[52,1,52,7],[52,8,52,9],[52,10,52,11],[52,12,52,13],[52,14,52,15],[52,16,52,17],[52,18,52,19],[52,20,52,21],[52,22,52,23],[52,24,52,25],[52,26,52,27],[52,28,52,29],[53,1,53,7],[53,8,53,9],[53,10,53,11],[53,12,53,13],[53,14,53,15],[53,16,53,17],[53,18,53,19],[53,20,53,21],[53,22,53,23],[53,24,53,25],[53,26,53,27],[53,28,53,29],[54,1,54,7],[54,8,54,9],[54,10,54,11],[54,12,54,13],[54,14,54,15],[54,16,54,17],[54,18,54,19],[54,20,54,21],[54,22,54,23],[54,24,54,25],[54,26,54,27],[54,28,54,29],[55,1,55,7],[55,8,55,9],[55,10,55,11],[55,12,55,13],[55,14,55,15],[55,16,55,17],[55,18,55,19],[55,20,55,21],[55,22,55,23],[55,24,55,25],[55,26,55,27],[55,28,55,29],[56,1,56,7],[56,8,56,9],[56,10,56,11],[56,12,56,13],[56,14,56,15],[56,16,56,17],[56,18,56,19],[56,20,56,21],[56,22,56,23],[56,24,56,25],[56,26,56,27],[56,28,56,29],[57,1,57,30],[58,1,58,7],[58,8,58,30],[59,1,59,7],[59,8,59,30],[60,1,60,7],[60,8,60,30],[61,1,61,7],[61,8,61,30],[63,1,63,30],[65,1,65,30],[66,1,66,27],[66,28,66,30],[67,1,67,30],[68,1,68,27],[68,28,68,30],[69,1,69,30],[70,1,70,27],[70,28,70,30],[71,1,71,30],[72,1,72,30],[73,1,73,27],[73,28,73,30],[74,1,74,27],[74,28,74,30],[75,1,75,27],[75,28,75,30],[76,1,76,30],[77,1,77,30],[78,1,78,30],[79,1,79,11],[79,12,79,14],[80,1,80,11],[80,12,80,14],[81,1,81,11],[81,12,81,14],[82,1,82,11],[82,12,82,14],[83,1,83,11],[83,12,83,14],[84,1,84,11],[84,12,84,14],[85,1,85,30],[86,1,86,30],[87,1,87,30],[88,1,88,30],[90,20,90,26],[91,20,91,26]]}
[]
["(Наименование организации)",{"$nulls":32},"BYN",{"$f":"ExchangeRates(AH2,DATE(YEAR($Q$4),3*ROUNDUP(MONTH($Q$4)/3,0)-2,0))","v":{"v":1,"d":"1.000000"}}]
[{"$nulls":33},"USD",{"$f":"ExchangeRates(AH3,DATE(YEAR($Q$4),3*ROUNDUP(MONTH($Q$4)/3,0)-2,0))","v":{"v":3.2385,"d":"3.238500"}}]
[{"$nulls":11},"Дата заполнения",{"$nulls":21},"EUR",{"v":3.474,"d":"3.474000"}]
[{"$nulls":11},"Отчётный период",{"$nulls":4},{"$f":"IF(Q4<>\"\",IF(INT((MONTH(Q4)+2)/3)=1,\"4-й квартал \"&TEXT(Q4,\"гггг\")-1&\" года\",INT((MONTH(Q4)+2)/3)-1&\"-й квартал \"&TEXT(Q4,\"гггг\")&\" года\"),\"\")","v":""},{"$nulls":16},"RUB",{"v":0.03503,"d":"0.035030"}]
[{"$nulls":33},"CNY",{"v":0.44416,"d":"0.444160"}]
["Раздел 1 - Информационные сведения",{"$nulls":32},"GBP",{"v":4.0519,"d":"4.051900"}]
[]
[null,"В отчётном периоде были заключены сделки, носящие кредитный характер (в т.ч. сделки факторинга, лизинга, гарантий, займов, выпущены облигации, токены) без согласия ОАО «БНБ-Банк»"]
[]
[null,"Кредитор (в случае займа предоставленного - наименование организации-получателя займа)",{"$nulls":11},"Сумма договора, валюта",{"$nulls":6},"Вид сделки ",{"$nulls":5},"Дата получения, \nдата погашения \nпо договору"]
[]
[]
[]
[]
[null,"По состоянию на отчётную дату система налогообложения"]
[]
[null,"Информация о деятельности организации за отчётный период"]
[]
[null,"Информация о деятельности организации",{"$nulls":26},"Да/нет"]
[null,"Наличие чистого убытка, отраженного в ОПиУ нарастающим итогом с начала финансового года?"]
[null,"Наличие убытка от текущей деятельности, отраженного в ОПиУ нарастающим итогом с начала финансового года?"]
[null,"Наличие заключенных сделок с ОАО БНБ-Банк в форме немикрокредита, лизинга, факторинга, банковской гарантии, сделок с ценными бумагами (облигации), токенами"]
[]
["Раздел 2 - Сведения о деятельности"]
[]
[null,"Наименование показателя",{"$nulls":14},"Данные за отчетный период (нарастающим итогом с начала текущего года), сумма BYN",{"$nulls":4},"Данные по состоянию на отчетную дату "]
[{"$nulls":21},"Сумма",{"$nulls":3},"Валюта",null,"экв.BYN"]
[null,"Валовая выручка (без НДС)",{"$nulls":29},{"$f":"VLOOKUP(V29,$AH$2:$AI$7,2,0)","v":{"$error":"#N/A"}},"единый/УСН"]
[null,"Валовые расходы (без НДС и иных налоговых платежей)",{"$nulls":29},{"$f":"VLOOKUP(Z30,$AH$2:$AI$7,2,0)","v":{"$error":"#N/A"}},"единый/УСН"]
[null,"Налоговые платежи (за исключением НДС)",{"$nulls":29},{"$error":"#N/A"},"единый/УСН"]
[null,"Прибыль от деятельности",{"$nulls":14},{"$f":"Q29-Q30-Q31","v":0},{"$nulls":14},{"$error":"#N/A"},"единый/УСН"]
[null,"Валовая выручка (без НДС)",{"$nulls":29},{"$f":"VLOOKUP(V33,$AH$2:$AI$7,2,0)","v":{"$error":"#N/A"}},"подоходный"]
[null,"Валовые расходы (без НДС)",{"$nulls":29},{"$f":"VLOOKUP(Z34,$AH$2:$AI$7,2,0)","v":{"$error":"#N/A"}},"подоходный"]
[null,"Справочно: налоговые платежи (за исключением НДС)",{"$nulls":29},{"$error":"#N/A"},"подоходный"]
[null,"Прибыль от деятельности",{"$nulls":14},{"$f":"Q33-Q34","v":0},{"$nulls":14},{"$error":"#N/A"},"подоходный"]
[null,"Сумма уплаченных процентов по сделкам  кредитного характера, вознаграждений лизингодателю по договору лизинга, комиссий по банковским гарантиям, аккредитивам с начала календарного года, включенных в валовые расходы",{"$nulls":29},{"$error":"#N/A"},"единый/УСН и подоходный"]
[null,"Сумма уплаченных процентов по сделкам  кредитного характера, вознаграждений лизингодателю по договору лизинга, комиссий по банковским гарантиям, аккредитивам с начала календарного года, уплачиваемых из чистой прибыли",{"$nulls":29},{"$f":"VLOOKUP(Z38,$AH$2:$AI$7,2,0)","v":{"$error":"#N/A"}},"единый/УСН и подоходный"]
[null,"Сумма начисленных процентов по сделкам  кредитного характера, вознаграждений лизингодателю по договору лизинга, комиссий по банковским гарантиям, аккредитивам с начала календарного года, включенных в себестоимость/расходы по текущей деятельности",{"$nulls":29},{"$error":"#N/A"}]
[null,"Сумма начисленных процентов по сделкам  кредитного характера, вознаграждений лизингодателю по договору лизинга, комиссий по банковским гарантиям, аккредитивам с начала календарного года, кроме включенных в себестоимость/расходы по текущей деятельности",{"$nulls":29},{"$error":"#N/A"}]
[null,"Сумма начисленной амортизации по материальным и нематериальным активам с начала календарного года",{"$nulls":29},{"$error":"#N/A"}]
[null,"Остаток задолженности по основному долгу (срочной и (или) просроченной), в случае если вид кредита определен в кредитном договоре как кредит / невозобновляемая кредитная линия / аккредитив / облигации / токены",{"$nulls":25},{"$f":"V42*AF42","v":{"$error":"#N/A"}},{"$nulls":3},{"$f":"VLOOKUP(Z42,$AH$2:$AI$7,2,0)","v":{"$error":"#N/A"}}]
[null,"Cумма предельного размера единовременной задолженности (лимит овердрафта), если вид кредита определен в кредитном договоре как возобновляемая кредитная линия (овердрафт)",{"$nulls":25},{"$error":"#N/A"},{"$nulls":3},{"$error":"#N/A"}]
[null,"Остаток задолженности по договорам лизинга (без НДС)",{"$nulls":25},{"$error":"#N/A"},{"$nulls":3},{"$error":"#N/A"}]
[null,"Остаток задолженности по договорам займа, привлеченных от третьих лиц (невзаимосвязанных лиц)",{"$nulls":25},{"$error":"#N/A"},{"$nulls":3},{"$error":"#N/A"}]
[null,"Сумма денежных обязательств по всем выданным банковским гарантиям (контргарантиям), по которым Компания / ИП является Принципалом",{"$nulls":25},{"$f":"V46*AF46","v":{"$error":"#N/A"}},{"$nulls":3},{"$error":"#N/A"}]
[null,"Сумма обязательств по всем договорам поручительства, заключенным Компанией / ИП в обеспечение обязательств третьих (невзаимосвязанных) лиц",{"$nulls":25},{"$error":"#N/A"},{"$nulls":3},{"$error":"#N/A"}]
[]
["Раздел 3 - Программа по выходу на безубыточную деятельность (поквартально нарастающим итогом в течение года, тыс. BYN)                                                                                                                                                              Заполнять в случае, если ранее не предоставлялась программа или предоставлялась, но по истечении планируемого периода так и не вышли на прибыль"]
[]
[null,"Наименование показателя",{"$nulls":6},"1-й кв. __ года, в кот-м допущен убыток",null,"2-й кв. __ года, в кот-м допущен убыток",null,"3-й кв. __ года, в кот-м допущен убыток",null,"4-й кв. __ года, в кот-м допущен убыток",null,"1-й плановый кв. __ года",null,"2-й плановый кв. __ года",null,"3-й плановый кв. __ года",null,"4-й плановый кв. __ года",null,"1-й плановый кв. __ года",null,"2-й плановый кв. __ года",null,"3-й плановый кв. __ года",null,"4-й плановый кв. __ года"]
[null,"Выручка"]
[null,"Валовая прибыль (Выручка -матзатраты)"]
[null,"Общие расходы по бизнесу (ФОТ+аренда+транспорт+маркетинг+ОХР+ налог. платежи+представительские+выплаты % по кредитам/займам+проч. доходы и расходы+ амортизация)"]
[null,"Прибыль от бизнеса (тек. деятельности)",{"$nulls":6},{"$f":"I53-I54","v":0},null,{"$f":"K53-K54","v":0},null,0,null,0,null,0,null,0,null,0,null,0,null,0,null,0,null,{"$f":"AC53-AC54","v":0},null,{"$f":"AE53-AE54","v":0}]
[null,"Чистая прибыль"]
[null,"Валовая рентабельность",{"$nulls":6},{"$f":"IFERROR(I53/I52,\"\")","v":""},null,{"$f":"IFERROR(K53/K52,\"\")","v":""},null,{"$f":"IFERROR(M53/M52,\"\")","v":""},null,{"$f":"IFERROR(O53/O52,\"\")","v":""},null,{"$f":"IFERROR(Q53/Q52,\"\")","v":""},null,{"$f":"IFERROR(S53/S52,\"\")","v":""},null,{"$f":"IFERROR(U53/U52,\"\")","v":""},null,{"$f":"IFERROR(W53/W52,\"\")","v":""},null,{"$f":"IFERROR(Y53/Y52,\"\")","v":""},null,{"$f":"IFERROR(AA53/AA52,\"\")","v":""},null,{"$f":"IFERROR(AC53/AC52,\"\")","v":""},null,{"$f":"IFERROR(AE53/AE52,\"\")","v":""}]
[null,"Пояснения к расчётам, указанным выше"]
[null,"Описание мероприятия по выходу на прибыльную деятельность"]
[null,"Период реализации мероприятия (месяц/квартал)"]
[null,"Результат от проведения мероприятия (сумма, тыс. BYN)"]
[null,"ИТОГО Снижение размера убытка/ получение прибыли, (сумма, тыс. BYN)"]
[]
[null,"Раздел 4 - Последующий отчет о проведении экологического и социального обследования (экологический отчет)"]
[]
[1,"Сведения о проведенных проверках контролирующими и надзорными органами\n    Описание:"]
[2,"Выполнение норм в области экологии\n"]
[null,"    Комментарии:"]
[3,"Соблюдение природоохранных требований\n"]
[null,"    Комментарии:"]
[4,"Соответствие требований по социальным вопросам\n"]
[null,"    Комментарии:"]
[5,"Выполнение Кредитополучателем принятых на себя обязательств:"]
[null,"Было ли сообщено в ОАО \"БНБ-Банк\" о всех фактах проведения проверок соответствующими органами с предоставлением актов?"]
[null,"Было ли сообщено в ОАО \"БНБ-Банк\" о всех чрезвычайных происшествиях?"]
[6,"Укажите план мероприятий по снижению высокой степени экологического либо социального риска, а также мероприятия по снижению вероятности возникновения фактов чрезвычайных происшествий (при их наличии):\n"]
[null,"    Комментарии:"]
[7,"Укажите о произошедших изменениях в структуре хозяйственной деятельности и/или применяемых производственных процессах"]
[null,"7.1. Структура выручки по видам деятельности (ОКЭД):"]
[null,"ОКЭД",{"$nulls":10},"%"]
[]
[]
[]
[]
[null,"Итого:",{"$nulls":10},{"$f":"IF(SUM(M80:O84)<>0,SUM(M80:O84),\"\")","v":""},{"$nulls":3},{"$f":"IF(AND(M85<>\"\",M85<>100%),\"Значение в поле Итого д. б. равно 100%!!!\",\"\")","v":""}]
[null,"7.2. Получение /истечение срока действия специальных разрешений (лицензий):"]
[]
[null,"7.3. Иные изменения (в т.ч. развитие и совершенствование основных фондов, усовершенствование системы управления и т.п.):"]
[]
[]
[{"$nulls":12},"Директор",{"$nulls":7},"(ФИО)"]
[{"$nulls":12},"Главный бухгалтер",{"$nulls":7},"(ФИО)"]
[{"$nulls":17},"МП"]

{"sheet":"support","index":1,"n_rows":5,"n_cols":2,"rows_kept":5,"hidden":true}
[]
[null,"общая"]
[null,"УСН с ведением бухгалтерского учёта (бух.баланс предоставляется ежеквартально)"]
[null,"УСН с ведением бухгалтерского учёта (бух.баланс предоставляется ежегодно)"]
[null,"УСН без ведения бухгалтерского учёта"]